bitfinex/quotes_ETHUSD_20250414
["timestamp","ask_amount","ask_price","bid_price","bid_amount"]
[1744659557689,2.102286,1640.4,1640.1,6.09691]
[1744659558103,8.198466,1640.4,1640.1,6.09691]
[1744659558299,2.102286,1640.4,1640.0,6.09745]
[1744659558509,6.09683,1640.2,1639.9,6.09783]
[1744659558712,6.09683,1640.2,1640.0,4.0]
[1744659558909,12.1938,1640.2,1640.0,4.0]
[1744659559083,6.85058,1640.1,1640.0,4.0]
[1744659559683,6.85058,1640.1,1639.8,10.09827]
[1744659560318,6.85058,1640.1,1639.8,6.09827]
[1744659560811,0.7534,1640.1,1639.8,6.09819]
[1744659561012,0.7534,1640.1,1639.9,6.09781]
[1744659561214,6.84998,1640.3,1640.0,6.09738]
[1744659561515,6.84998,1640.3,1639.9,6.09783]
[1744659561516,6.09686,1640.2,1639.9,12.19564]
[1744659561812,12.19386,1640.2,1639.9,6.09781]
[1744659561985,6.09686,1640.2,1639.9,6.09775]
[1744659563113,6.09686,1640.2,1639.9,12.19554]
[1744659563315,12.9465,1640.3,1640.0,6.09754]
[1744659563616,9.84985,1640.3,1640.0,12.19496]
[1744659563816,15.94644,1640.3,1640.0,6.09742]
[1744659563982,0.8289,1640.2,1639.7,6.09837]
[1744659564184,6.92575,1640.2,1639.9,12.19547]
[1744659564379,3.0,1640.3,1639.9,6.89089]
[1744659564380,9.09656,1640.3,1639.9,6.89089]
[1744659564616,9.09656,1640.3,1639.9,0.7932]
[1744659564817,0.81391,1640.4,1640.2,6.09658]
[1744659564984,1e-05,1640.4,1640.2,6.09658]
[1744659565389,1e-05,1640.4,1638.8,6.10197]
[1744659565390,4.5708427,1640.3,1638.8,6.10197]
[1744659565590,3.2766,1639.7,1639.0,4.7611]
[1744659565891,15.01642,1639.7,1639.2,6.10017]
[1744659566090,12.19855,1639.6,1639.1,6.57683]
[1744659566295,6.0992,1639.6,1639.1,12.67759]
[1744659566502,6.0992,1639.6,1639.2,1.267759]
[1744659566905,12.19854,1639.6,1639.2,1.267759]
[1744659567101,12.19846,1639.6,1639.2,1.267759]
[1744659567628,6.0995,1639.5,1639.2,1.267759]
[1744659568006,6.0995,1639.5,1639.1,0.47611]
[1744659568213,6.0995,1639.5,1639.0,6.86226]
[1744659568400,0.791,1639.4,1639.0,12.96337]
[1744659568599,0.791,1639.4,1639.1,6.16170133]
[1744659569147,0.791,1639.4,1639.1,6.1007]
[1744659569497,6.89093,1639.4,1639.0,6.8623]
[1744659569805,12.99097,1639.4,1639.0,8.158693]
[1744659570009,6.89093,1639.4,1639.0,8.158693]
[1744659570525,7.38412093,1639.6,1639.1,0.06100112]
[1744659570726,6.09954,1639.5,1639.2,6.10032]
[1744659571520,6.92239,1639.6,1639.3,6.10003]
[1744659571704,13.02624,1639.8,1639.5,6.09928]
[1744659571904,13.47851312,1639.8,1639.4,12.809463]
[1744659572110,13.47851312,1639.8,1639.5,6.09917]
[1744659572111,1.28158312,1639.8,1639.5,6.09917]
[1744659572415,7.37988312,1639.8,1639.5,6.09917]
[1744659572624,7.37988312,1639.8,1639.5,7.38615684]
[1744659573001,7.37988312,1639.8,1639.5,1.28698684]
[1744659573633,13.47847312,1639.8,1639.5,1.28698684]
[1744659574534,6.09874,1639.7,1639.5,1.28698684]
[1744659574718,12.19758,1639.7,1639.3,13.01496]
[1744659575033,7.37990312,1639.8,1639.5,6.09938]
[1744659575239,7.37990312,1639.8,1639.4,6.16059771]
[1744659575240,7.37990312,1639.8,1639.4,6.09961]
[1744659575406,6.09905,1639.6,1639.3,13.01493]
[1744659575597,6.09905,1639.6,1639.3,13.70642]
[1744659575825,12.19774,1639.7,1639.3,13.70634]
[1744659576023,6.09882,1639.7,1639.3,1.50629]
[1744659576226,6.09882,1639.7,1639.4,12.26030767]
[1744659576428,6.09882,1639.7,1639.4,6.16063767]
[1744659576661,6.09962,1639.5,1639.2,6.10037]
[1744659576834,6.09962,1639.5,1639.1,6.88011]
[1744659576835,0.8308,1639.5,1639.1,6.88011]
[1744659577023,6.09996,1639.4,1639.2,4.0]
[1744659577224,12.19998,1639.4,1639.1,8.5621303]
[1744659577535,12.19998,1639.4,1639.1,6.94118106]
[1744659578050,12.19991,1639.4,1639.1,6.94118106]
[1744659578727,0.8308,1639.5,1639.2,6.10026]
[1744659578921,0.8308,1639.5,1639.2,12.89473611]
[1744659579339,0.8308,1639.5,1639.3,6.10015]
[1744659579539,0.8308,1639.5,1639.2,12.89473611]
[1744659579740,6.93027,1639.5,1639.2,6.79431611]
[1744659579927,6.09989,1639.4,1639.1,12.20158]
[1744659580235,0.8308,1639.5,1639.2,6.10041]
[1744659580439,6.09913,1639.6,1639.3,6.10004]
[1744659580852,6.92137,1639.7,1639.3,6.10002]
[1744659581016,6.92137,1639.7,1639.3,6.787062]
[1744659581354,13.02025,1639.7,1639.3,12.94811482]
[1744659581651,13.02025,1639.7,1639.4,6.09961]
[1744659581652,6.92137,1639.7,1639.4,6.09961]
[1744659582341,0.8226,1639.7,1639.4,6.09979]
[1744659582505,0.774,1639.9,1639.8,6.0983]
[1744659582707,6.09766,1640.0,1639.8,0.60983]
[1744659582946,6.09766,1640.0,1639.7,6.09859]
[1744659583341,6.87127,1640.1,1639.7,12.19713]
[1744659583547,12.96862,1640.1,1639.7,12.19713]
[1744659584183,6.87127,1640.1,1639.8,6.09828]
[1744659584324,6.87127,1640.1,1639.8,12.19645]
[1744659584646,6.09684,1640.2,1639.9,12.19555]
[1744659584942,12.55675,1640.3,1640.0,6.09745]
[1744659585419,1e-05,1640.4,1640.2,6.09681]
[1744659585619,6.09608,1640.4,1640.1,12.19412]
[1744659585818,1e-05,1640.4,1640.1,12.19412]
[1744659586166,1e-05,1640.4,1640.3,6.09644]
[1744659586316,1e-05,1640.4,1640.3,6.1573966]
[1744659586847,1e-05,1640.4,1640.3,6.09644]
[1744659587045,1e-05,1640.4,1640.3,6.15739655]
[1744659587253,1e-05,1640.4,1640.3,6.09644]
[1744659587555,1e-05,1640.4,1640.3,7.315748]
[1744659590728,1e-05,1640.4,1640.2,12.19331]
[1744659592466,6.09666,1640.3,1640.0,6.09745]
[1744659592632,6.09666,1640.3,1640.1,4.0]
[1744659593452,0.83311,1640.4,1640.2,12.1934]
[1744659593735,1e-05,1640.4,1640.2,6.09668]
[1744659593936,1e-05,1640.4,1640.3,6.09644]
[1744659594536,1e-05,1640.4,1640.3,6.90934]
[1744659597117,1e-05,1640.4,1640.2,13.81875681]
[1744659597622,1e-05,1640.4,1640.3,6.09644]
[1744659597915,1e-05,1640.4,1640.2,7.72206681]
[1744659598119,1e-05,1640.4,1640.3,6.09644]
[1744659598989,1e-05,1640.4,1640.2,1.62543681]
[1744659599193,1e-05,1640.4,1640.3,6.09644]
[1744659599397,1e-05,1640.4,1640.2,6.09671]
[1744659599598,1e-05,1640.4,1640.2,12.19342]
[1744659599799,1e-05,1640.4,1640.2,6.09671]
[1744659600435,6.09631,1640.4,1640.1,4.0]
[1744659600604,6.09644,1640.3,1640.1,4.0]
[1744659600807,6.09644,1640.3,1640.0,12.19464]
[1744659601134,6.09644,1640.3,1640.0,6.09719]
[1744659601339,6.09608,1640.4,1640.1,6.09717]
[1744659601529,1e-05,1640.4,1640.2,6.706427]
[1744659601735,1e-05,1640.4,1640.2,6.09671]
[1744659602341,1e-05,1640.4,1640.1,6.09682]
[1744659602538,1e-05,1640.4,1640.3,6.09644]
[1744659602746,1e-05,1640.4,1640.3,6.15740332]
[1744659603129,1e-05,1640.4,1640.3,12.99434779]
[1744659603439,1e-05,1640.4,1640.3,15.45215025]
[1744659603607,1e-05,1640.4,1640.3,19.45215025]
[1744659603804,1e-05,1640.4,1640.3,20.00215025]
[1744659604008,0.3966834,1640.8,1640.3,20.00215025]
[1744659604009,0.3966834,1640.8,1640.7,6.09495]
[1744659604256,0.3966834,1640.8,1640.7,9.92698441]
[1744659604457,0.3966834,1640.8,1640.7,12.4003923]
[1744659604762,0.3966834,1640.8,1640.7,12.33945789]
[1744659604966,0.3966834,1640.8,1640.7,13.33945789]
[1744659605269,0.3966834,1640.8,1640.7,10.09495]
[1744659605958,0.3966834,1640.8,1640.7,4.0]
[1744659606946,6.4912634,1640.8,1640.7,4.0]
[1744659607348,0.3966834,1640.8,1640.7,4.0]
[1744659607859,6.4912634,1640.8,1640.6,4.0]
[1744659608163,0.7969,1640.7,1640.6,4.0]
[1744659608467,0.7969,1640.7,1640.5,6.09542]
[1744659608661,0.3966834,1640.8,1640.6,6.09533]
[1744659609232,0.3966834,1640.8,1640.7,6.09495]
[1744659609759,0.3966834,1640.8,1640.6,6.09517]
[1744659610059,0.3966834,1640.8,1640.6,12.19034]
[1744659610265,0.3966834,1640.8,1640.7,6.09495]
[1744659610559,0.3966834,1640.8,1640.6,6.15611639]
[1744659610560,0.3966834,1640.8,1640.6,12.19037]
[1744659610766,0.3966834,1640.8,1640.6,13.5531812]
[1744659611767,0.3966834,1640.8,1640.7,6.09495]
[1744659612437,0.3966834,1640.8,1640.6,7.4579612]
[1744659612767,0.3966834,1640.8,1640.7,6.09495]
[1744659613366,0.3966834,1640.8,1640.6,7.4579612]
[1744659613767,0.3966834,1640.8,1640.5,6.705172]
[1744659613973,0.3966834,1640.8,1640.6,10.0952]
[1744659614272,0.3966834,1640.8,1640.6,4.0]
[1744659614651,0.3966834,1640.8,1640.6,10.09519]
[1744659614987,6.87735,1640.7,1640.6,4.0]
[1744659615283,0.7824,1640.7,1640.2,6.09675]
[1744659615478,12.19179,1640.5,1640.3,4.0]
[1744659615647,6.09588,1640.5,1640.3,4.0]
[1744659616197,6.09586,1640.5,1640.3,4.0]
[1744659616483,6.87847,1640.4,1640.1,16.19411]
[1744659616682,6.87847,1640.4,1640.1,5.619411]
[1744659616846,6.87847,1640.4,1640.1,4.0]
[1744659617186,6.8785,1640.4,1640.1,16.19412]
[1744659617381,0.7824,1640.4,1640.1,10.09703]
[1744659617545,0.7824,1640.4,1640.2,6.09668]
[1744659617945,0.7824,1640.4,1640.1,16.19418]
[1744659618175,0.7824,1640.4,1640.1,4.0]
[1744659618176,6.09658,1640.3,1640.1,4.0]
[1744659618484,12.97488,1640.4,1640.1,10.09717]
[1744659618651,6.0966,1640.3,1640.1,4.0]
[1744659619184,12.97472,1640.4,1640.1,4.0]
[1744659619409,6.87851,1640.4,1640.1,4.0]
[1744659619618,6.09647,1640.3,1640.0,6.09741]
[1744659619906,12.19319,1640.3,1639.9,12.1958]
[1744659620201,6.09696,1640.2,1640.0,4.0]
[1744659621189,6.09647,1640.3,1640.0,4.0]
[1744659621379,6.87857,1640.4,1640.1,12.19415]
[1744659621708,6.87857,1640.4,1640.0,10.0975]
[1744659621916,6.09649,1640.3,1640.0,17.814473]
[1744659622204,12.97501,1640.4,1640.0,17.814473]
[1744659622579,12.19324,1640.3,1640.0,5.619533]
[1744659622812,12.19324,1640.3,1640.0,4.0]
[1744659624010,6.09693,1640.2,1640.0,4.0]
[1744659624587,6.09653,1640.3,1640.0,4.0]
[1744659624588,6.09654,1640.3,1640.0,4.0]
[1744659624791,12.97483,1640.4,1640.0,10.09743]
[1744659625105,0.7824,1640.4,1640.2,6.09672]
[1744659625307,0.7824,1640.4,1640.1,6.09707]
[1744659625608,6.87857,1640.4,1640.1,12.19414]
[1744659626173,6.87857,1640.4,1640.1,6.09707]
[1744659626425,6.87857,1640.4,1640.1,12.19415]
[1744659626570,6.87857,1640.4,1640.1,6.09707]
[1744659628130,0.7824,1640.4,1640.2,6.09675]
[1744659628442,0.7824,1640.4,1640.2,12.19341]
[1744659629236,6.10454352,1640.5,1640.2,13.412751]
[1744659629442,5.653,1640.5,1640.4,6.09607]
[1744659629598,6.9024,1640.6,1640.5,6.0957]
[1744659629797,15.82384874,1640.8,1640.2,7.316141]
[1744659629798,6.7600834,1640.8,1640.6,12.19016]
[1744659630032,0.3966834,1640.8,1640.7,6.09495]
[1744659630743,0.3966834,1640.8,1640.6,6.09501]
[1744659631103,0.3966834,1640.8,1640.6,12.19023]
[1744659631305,0.3966834,1640.8,1640.6,13.409253]
[1744659631604,0.3966834,1640.8,1640.7,6.09495]
[1744659632016,0.3966834,1640.8,1640.6,7.314033]
[1744659632305,0.3966834,1640.8,1640.7,6.09495]
[1744659633203,0.3966834,1640.8,1640.7,6.88255]
[1744659633401,0.3966834,1640.8,1640.7,8.9117233]
[1744659633816,0.3966834,1640.8,1640.7,8.1241233]
[1744659634216,0.3966834,1640.8,1640.7,6.0291733]
[1744659634451,0.3966834,1640.8,1640.7,4.0]
[1744659634677,0.3966834,1640.8,1640.7,10.09495]
[1744659635763,0.3966834,1640.8,1640.7,6.09495]
[1744659636833,0.3966834,1640.8,1640.7,6.15589553]
[1744659637165,0.3966834,1640.8,1640.7,10.15589553]
[1744659637360,0.3966834,1640.8,1640.7,13.13625555]
[1744659639139,0.3966834,1640.8,1640.7,12.32955555]
[1744659642549,0.3966834,1640.8,1640.7,8.32955555]
[1744659643041,0.3966834,1640.8,1640.7,8.39050106]
[1744659644144,0.3966834,1640.8,1640.7,9.15910106]
[1744659644776,0.3966834,1640.8,1640.7,9.09815555]
[1744659645541,0.3966834,1640.8,1640.7,13.09815555]
[1744659647554,0.3966834,1640.8,1640.7,16.09815555]
[1744659648675,0.39353085,1640.8,1640.7,16.09815555]
[1744659649446,6.60999786,1641.4,1640.7,16.09815555]
[1744659649447,0.05,1641.4,1641.1,6.09316]
[1744659649775,0.05,1641.4,1641.3,6.09273]
[1744659652477,0.05,1641.4,1641.3,6.15365097]
[1744659652848,0.05,1641.4,1641.3,6.09273]
[1744659653784,0.05,1641.4,1641.3,6.15365093]
[1744659653986,0.05,1641.4,1641.3,7.46086802]
[1744659654163,0.05,1641.4,1641.3,11.46086802]
[1744659654363,0.05,1641.4,1641.3,11.39994709]
[1744659656183,0.05,1641.4,1641.3,4.0]
[1744659656382,13.05194,1641.4,1641.0,12.18752]
[1744659656679,6.09275,1641.3,1641.1,4.0]
[1744659656884,13.05194,1641.4,1641.1,10.09346]
[1744659657079,6.09276,1641.3,1641.1,4.0]
[1744659657254,12.18566,1641.3,1641.1,4.0]
[1744659657455,6.09276,1641.3,1641.1,4.0]
[1744659657654,12.18564,1641.3,1641.1,4.0]
[1744659657851,6.09276,1641.3,1641.1,4.0]
[1744659658057,8.819454,1641.4,1641.1,10.09337]
[1744659658257,8.819454,1641.4,1641.1,10.09336]
[1744659658586,2.726994,1641.4,1641.2,6.09309]
[1744659658765,8.819394,1641.4,1641.1,10.09336]
[1744659658957,8.819394,1641.4,1641.1,6.09335]
[1744659659156,8.819394,1641.4,1641.1,12.18671]
[1744659659561,8.819394,1641.4,1641.1,6.09335]
[1744659659562,14.911894,1641.4,1641.1,6.09335]
[1744659659757,0.05,1641.4,1641.3,6.09273]
[1744659660176,0.05,1641.4,1641.0,0.7961]
[1744659660487,6.14241,1641.4,1641.1,6.09329]
[1744659660675,6.14241,1641.4,1641.0,12.98372]
[1744659660676,6.09282,1641.3,1641.0,12.98372]
[1744659660881,0.05,1641.4,1641.2,6.09279]
[1744659661092,6.14247,1641.4,1641.1,6.09339]
[1744659661300,6.14247,1641.4,1641.1,6.09337]
[1744659661593,6.14247,1641.4,1641.1,6.09336]
[1744659662002,6.14247,1641.4,1641.1,12.18672]
[1744659662598,0.05,1641.4,1641.2,6.09309]
[1744659662980,6.14237,1641.4,1641.1,12.18672]
[1744659663176,6.14237,1641.4,1641.0,6.88984]
[1744659663524,6.91,1641.2,1641.1,4.0]
[1744659663671,9.86801843,1641.2,1641.1,4.0]
[1744659664189,6.09466,1640.8,1640.5,12.19108]
[1744659664397,0.7883,1640.7,1640.5,6.0955]
[1744659665103,6.88333,1640.7,1640.4,6.09588]
[1744659665415,6.09573,1640.5,1640.2,6.09664]
[1744659665786,8.47694184,1640.7,1640.3,6.09608]
[1744659666116,14.57215184,1640.7,1640.3,12.19224]
[1744659666315,6.09539,1640.6,1640.3,6.09608]
[1744659666617,6.09539,1640.6,1640.2,12.19352]
[1744659666784,12.19097,1640.6,1640.2,13.412872]
[1744659667514,0.7883,1640.7,1640.5,6.09566]
[1744659668714,6.09469,1640.8,1640.5,6.09566]
[1744659668715,6.09459,1640.8,1640.5,6.09558]
[1744659668925,6.09459,1640.8,1640.4,6.09602]
[1744659669123,6.09509,1640.7,1640.4,12.19204]
[1744659669288,12.18934,1640.8,1640.5,6.09568]
[1744659669483,12.18934,1640.8,1640.4,12.19197]
[1744659669484,6.09459,1640.8,1640.4,12.19197]
[1744659669736,12.18939,1640.8,1640.5,6.09569]
[1744659669903,12.18939,1640.8,1640.4,12.1919]
[1744659670292,6.09459,1640.8,1640.5,6.09567]
[1744659670495,12.18941,1640.8,1640.5,6.09567]
[1744659670893,6.09499,1640.7,1640.4,6.09595]
[1744659671184,6.90123,1640.6,1640.2,13.412952]
[1744659671385,12.99689,1640.6,1640.2,13.412952]
[1744659671925,0.8058,1640.6,1640.2,1.219352]
[1744659672127,0.7741,1640.8,1640.2,7.37708152]
[1744659672436,0.7741,1640.8,1640.5,6.09543]
[1744659672841,6.86871,1640.8,1640.5,12.19102]
[1744659673026,6.86871,1640.8,1640.4,6.09596]
[1744659673027,6.09497,1640.7,1640.4,6.09596]
[1744659673226,12.19015,1640.7,1640.4,6.09596]
[1744659673734,0.7741,1640.5,1640.3,6.09636]
[1744659673898,0.7741,1640.7,1640.4,6.09607]
[1744659674226,1.2326029,1640.9,1640.6,6.09533]
[1744659674431,7.3268829,1640.9,1640.5,6.09561]
[1744659674633,6.09496,1640.7,1640.4,6.09596]
[1744659674946,15.00467303,1640.9,1640.5,12.19125]
[1744659675152,8.91029303,1640.9,1640.6,6.09529]
[1744659675352,2.81599303,1640.9,1640.5,6.09562]
[1744659675649,12.19027,1640.7,1640.4,6.09599]
[1744659676004,12.18942,1640.8,1640.4,12.19194]
[1744659676205,6.09467,1640.8,1640.5,6.09567]
[1744659676406,1.2326029,1640.9,1640.4,6.09607]
[1744659676605,0.8033,1641.1,1641.0,6.09365]
[1744659676807,0.8033,1641.3,1641.1,6.09347]
[1744659677019,7.34676768,1641.3,1640.9,12.18823]
[1744659677248,8.38224629,1641.3,1640.9,6.09409]
[1744659677449,6.09331,1641.2,1640.9,6.09409]
[1744659677649,6.09331,1641.2,1640.9,6.09419]
[1744659677953,12.18669,1641.2,1640.9,6.09419]
[1744659678523,6.09331,1641.2,1640.9,6.09419]
[1744659678948,6.09331,1641.2,1640.9,6.09411]
[1744659679345,8.38217629,1641.3,1640.8,0.06093965]
[1744659679568,8.38217629,1641.3,1641.0,6.09369]
[1744659679770,8.38217629,1641.3,1640.9,6.09421]
[1744659679970,6.09312,1641.2,1640.8,12.18895]
[1744659680168,12.18644,1641.2,1640.9,6.09419]
[1744659680757,6.09312,1641.2,1640.9,6.09419]
[1744659681163,14.47507629,1641.3,1641.0,6.09374]
[1744659681364,8.38217629,1641.3,1641.0,6.09382]
[1744659681592,7.34670768,1641.3,1640.7,6.09495]
[1744659681755,1.25389768,1641.3,1640.8,6.09458]
[1744659681950,7.34665768,1641.3,1641.0,6.09367]
[1744659682185,13.43957768,1641.3,1641.0,6.09367]
[1744659682383,1.25389768,1641.3,1641.0,6.09367]
[1744659682571,7.34667768,1641.3,1641.0,6.09367]
[1744659682772,13.43967768,1641.3,1641.0,6.09367]
[1744659683151,6.09312,1641.2,1640.9,6.09411]
[1744659684178,7.34672768,1641.3,1641.0,6.09382]
[1744659684586,6.09323,1641.2,1640.9,6.09411]
[1744659684799,12.18669,1641.2,1640.8,12.18898]
[1744659685101,7.34662768,1641.3,1641.0,6.09383]
[1744659685403,1.25389768,1641.3,1640.8,1.294728]
[1744659685583,11.74,1641.4,1641.2,6.0931]
[1744659685900,11.74,1641.4,1641.3,6.09273]
[1744659686192,5.6,1641.4,1641.2,6.0931]
[1744659686499,5.6,1641.4,1641.3,6.09273]
[1744659687852,5.6,1641.4,1641.2,13.404562]
[1744659688166,5.6,1641.4,1641.2,12.1859]
[1744659689504,5.6,1641.4,1641.2,6.09295]
[1744659690012,5.6,1641.4,1641.1,6.09347]
[1744659690013,0.8024,1641.3,1641.0,12.18749]
[1744659690192,6.89526,1641.3,1641.0,6.09374]
[1744659690397,6.89526,1641.3,1641.0,12.18747]
[1744659690714,6.89526,1641.3,1641.0,6.09377]
[1744659691012,6.09322,1641.2,1640.9,6.0942]
[1744659691369,12.18667,1641.2,1640.9,6.0942]
[1744659691569,6.09322,1641.2,1640.9,6.0942]
[1744659691770,12.1865,1641.2,1640.9,6.0942]
[1744659692208,13.96706844,1641.2,1640.9,6.0942]
[1744659692515,7.87378844,1641.2,1640.9,6.0942]
[1744659692817,6.09322,1641.2,1640.9,12.1883]
[1744659693011,17.80488443,1641.3,1640.9,12.1883]
[1744659693181,0.8024,1641.3,1641.2,6.0931]
[1744659693383,0.05,1641.4,1641.2,12.18588]
[1744659693583,0.05,1641.4,1641.2,6.09291]
[1744659693914,0.05,1641.4,1641.3,6.09273]
[1744659694136,0.05,1641.4,1641.3,7.920586]
[1744659694637,0.05,1641.4,1641.3,8.696586]
[1744659695210,0.05,1641.4,1641.3,7.920586]
[1744659696623,0.05,1641.4,1641.3,6.09273]
[1744659696802,0.05,1641.4,1641.2,12.18586]
[1744659697020,0.05,1641.4,1641.3,6.09273]
[1744659699864,0.05,1641.4,1641.2,6.09291]
[1744659700024,0.05,1641.4,1641.2,12.18591]
[1744659700220,0.8566,1641.4,1640.9,0.8059]
[1744659700425,9.05121843,1641.2,1640.8,12.18893]
[1744659700655,6.0932,1641.2,1640.8,12.18893]
[1744659700817,6.0937,1641.1,1640.9,1.218893]
[1744659701151,6.90064,1641.0,1640.7,6.0948]
[1744659701355,0.8066,1641.0,1640.7,12.18973]
[1744659701553,0.8066,1641.0,1640.7,6.0948]
[1744659701856,0.8066,1641.0,1640.7,12.1896]
[1744659702025,0.8066,1641.0,1640.7,13.48915]
[1744659702553,0.8066,1641.0,1640.8,6.09429]
[1744659703518,0.8066,1641.0,1640.7,7.39448]
[1744659703722,0.8066,1641.0,1640.7,13.4893]
[1744659704970,7.34093418,1641.2,1640.8,6.09455]
[1744659705338,1.24782418,1641.2,1641.0,6.0938]
[1744659705543,7.34092418,1641.2,1640.9,12.18815]
[1744659705855,7.34092418,1641.2,1640.9,6.09407]
[1744659706050,13.43422418,1641.2,1640.9,6.09407]
[1744659706257,6.09358,1641.1,1640.8,6.83996429]
[1744659706454,12.18732,1641.1,1640.8,0.74550429]
[1744659706770,12.18732,1641.1,1640.7,6.09486]
[1744659706771,6.09403,1641.0,1640.7,6.09486]
[1744659706949,12.18803,1641.0,1640.7,6.09486]
[1744659707150,6.09372,1641.1,1640.7,6.09493]
[1744659707326,6.09364,1641.1,1640.8,6.09456]
[1744659707529,6.09364,1641.1,1640.8,12.18899]
[1744659708133,7.34092418,1641.2,1640.8,13.407769]
[1744659708329,13.43433418,1641.2,1640.8,13.407769]
[1744659709027,13.43433418,1641.2,1640.7,6.09481]
[1744659709028,6.09399,1641.0,1640.7,6.09481]
[1744659709248,12.18801,1641.0,1640.7,6.09481]
[1744659709423,6.09399,1641.0,1640.7,6.09481]
[1744659710041,6.09399,1641.0,1640.7,12.18963]
[1744659710242,6.09399,1641.0,1640.7,13.489183]
[1744659710773,6.09358,1641.1,1640.8,6.09448]
[1744659710942,6.09358,1641.1,1640.8,6.09447]
[1744659711337,5.548,1641.3,1641.1,6.09347]
[1744659711674,5.548,1641.3,1640.9,6.09409]
[1744659711675,6.0931,1641.2,1640.9,6.90197]
[1744659711837,6.0931,1641.2,1640.9,8.201618]
[1744659713073,6.0931,1641.2,1640.9,14.295728]
[1744659714064,12.18574,1641.3,1640.9,8.201618]
[1744659714263,12.18574,1641.3,1640.9,6.90197]
[1744659714476,12.18574,1641.3,1640.9,12.99606]
[1744659715678,6.09284,1641.3,1641.0,6.09375]
[1744659716087,12.18576,1641.3,1641.0,6.09375]
[1744659716383,6.09284,1641.3,1641.0,6.09375]
[1744659716579,6.09284,1641.3,1641.0,12.18748]
[1744659716875,6.09284,1641.3,1641.0,6.09373]
[1744659717059,12.18574,1641.3,1641.0,6.09373]
[1744659717460,6.09284,1641.3,1641.0,6.09373]
[1744659717683,6.09284,1641.3,1641.0,12.18746]
[1744659718052,6.09284,1641.3,1641.0,6.09373]
[1744659718282,6.09284,1641.3,1641.0,12.18746]
[1744659718485,18.63386,1641.4,1641.1,6.09321]
[1744659718873,12.5414,1641.4,1641.0,1.36047682]
[1744659719072,12.5414,1641.4,1641.2,6.09292]
[1744659719584,11.739,1641.4,1641.2,6.09292]
[1744659719787,11.739,1641.4,1641.2,6.09309]
[1744659720265,0.05,1641.4,1641.2,12.18589]
[1744659720471,0.05,1641.4,1641.3,6.09273]
[1744659723962,0.05,1641.4,1641.3,6.15365489]
[1744659724273,0.05,1641.4,1641.3,6.09273]
[1744659724884,0.05,1641.4,1641.3,10.09273]
[1744659725084,0.05,1641.4,1641.3,11.9139584]
[1744659726977,0.05,1641.4,1641.3,5.8212284]
[1744659727186,0.05,1641.4,1641.3,4.0]
[1744659727863,6.09275,1641.3,1641.0,7.393356]
[1744659728064,6.09275,1641.3,1641.1,4.0]
[1744659728065,6.0931,1641.2,1641.1,4.0]
[1744659728297,6.9099,1641.2,1640.9,6.09408]
[1744659728767,6.09351,1641.1,1640.8,6.86538]
[1744659728966,6.09351,1641.1,1640.9,4.0]
[1744659729298,6.90997,1641.2,1640.9,10.09409]
[1744659729666,12.46685,1641.3,1640.9,16.18834]
[1744659729987,13.718425,1641.3,1641.0,6.0938]
[1744659730296,13.718425,1641.3,1641.0,6.09372]
[1744659730499,5.548,1641.3,1641.1,6.09346]
[1744659730865,5.548,1641.3,1641.2,6.0931]
[1744659731287,6.14247,1641.4,1641.1,13.0114]
[1744659731671,6.0928,1641.3,1641.0,6.09378]
[1744659731879,6.9187,1641.3,1641.0,6.09378]
[1744659732072,6.9187,1641.3,1640.9,16.18826]
[1744659732299,6.09312,1641.2,1640.9,16.18826]
[1744659732662,6.9187,1641.3,1641.0,6.09383]
[1744659732868,0.8259,1641.3,1641.1,6.0934]
[1744659733067,0.8259,1641.3,1641.1,12.1868]
[1744659733379,0.8259,1641.3,1641.1,6.0934]
[1744659733904,0.8259,1641.3,1641.1,12.18676]
[1744659734089,0.8259,1641.3,1641.1,6.09336]
[1744659734698,0.8259,1641.3,1641.0,12.18754]
[1744659734900,6.91865,1641.3,1641.0,6.09377]
[1744659735508,0.8259,1641.3,1641.0,6.09374]
[1744659735709,0.8259,1641.3,1640.9,11.795386]
[1744659735879,6.91873,1641.3,1641.0,12.18758]
[1744659736398,6.91873,1641.3,1641.0,6.09379]
[1744659737021,6.09365,1641.1,1640.9,4.0]
[1744659737511,6.91868,1641.3,1641.0,6.09365]
[1744659737691,0.8259,1641.3,1641.1,6.09342]
[1744659738081,13.0115,1641.3,1641.0,6.09365]
[1744659738282,6.3856,1641.4,1640.9,10.0942]
[1744659738584,0.05,1641.4,1641.2,6.09285]
[1744659739183,6.14239,1641.4,1641.1,6.89742]
[1744659739507,6.14239,1641.4,1641.0,7.10318]
[1744659739508,6.09274,1641.3,1641.0,13.19692]
[1744659739711,6.14238,1641.4,1641.1,7.413142]
[1744659739916,6.14238,1641.4,1641.1,13.506592]
[1744659740115,6.14238,1641.4,1641.1,12.1869]
[1744659740602,6.14238,1641.4,1641.1,6.09345]
[1744659741415,6.14238,1641.4,1641.0,6.09376]
[1744659741718,6.09314,1641.2,1640.9,6.89819]
[1744659741884,6.09314,1641.2,1640.9,7.588009]
[1744659742316,12.94097,1641.3,1641.0,4.0]
[1744659742615,6.09317,1641.2,1641.0,4.0]
[1744659743016,12.1864,1641.2,1641.0,4.0]
[1744659743383,6.09347,1641.1,1641.0,4.0]
[1744659743589,12.1865,1641.2,1641.0,4.0]
[1744659744218,6.09317,1641.2,1641.0,4.0]
[1744659744620,12.18649,1641.2,1641.0,4.0]
[1744659744785,12.18646,1641.2,1640.9,6.09411]